bitfinex/quotes_SOLUSD_20230401
["timestamp","ask_amount","ask_price","bid_price","bid_amount"]
[1680359579514,26.96,20.97,20.961,10.0]
[1680359581817,26.96,20.97,20.965,19.078]
[1680359582122,20.0,20.976,20.966,10.0]
[1680359588522,20.0,20.976,20.966,6.5]
[1680359590014,20.0,20.976,20.965,19.078]
[1680359590819,20.0,20.976,20.966,10.0]
[1680359591320,20.0,20.976,20.968,19.075]
[1680359591923,20.0,20.976,20.969,10.0]
[1680359598814,20.0,20.976,20.968,29.075]
[1680359600830,20.0,20.976,20.966,15.09050782]
[1680359601034,20.0,20.976,20.964,29.08]
[1680359601331,17.0,20.975,20.964,29.08]
[1680359602635,17.0,20.975,20.96,10.0]
[1680359602819,27.16,20.97,20.959,7.61077249]
[1680359606339,27.16,20.97,20.961,19.082]
[1680359616652,27.16,20.97,20.962,10.0]
[1680359629050,27.16,20.97,20.961,19.082]
[1680359637550,21.54,20.97,20.961,19.082]
[1680359638152,10.0,20.969,20.961,19.082]
[1680359638540,21.54,20.97,20.961,19.082]
[1680359648451,17.0,20.969,20.949,4.51637451]
[1680359648761,21.67,20.96,20.949,4.51637451]
[1680359649158,21.67,20.96,20.95,10.0]
[1680359649654,21.67,20.96,20.953,19.09]
[1680359652355,10.0,20.965,20.953,19.09]
[1680359652554,17.0,20.964,20.953,19.09]
[1680359655246,229.4376,20.966,20.953,19.09]
[1680359655446,20.0,20.965,20.953,19.09]
[1680359655663,20.0,20.965,20.954,33.32611514]
[1680359655966,20.0,20.965,20.958,10.0]
[1680359663175,20.0,20.965,20.957,19.086]
[1680359676577,73.286,20.97,20.958,17.0]
[1680359676578,46.186,20.97,20.958,17.0]
[1680359676987,27.1,20.97,20.959,14.28717907]
[1680359680399,27.1,20.97,20.961,19.082]
[1680359680600,27.1,20.97,20.963,10.0]
[1680359680902,19.086,20.976,20.963,16.77492852]
[1680359681201,20.0,20.975,20.963,16.77492852]
[1680359684486,27.1,20.97,20.963,6.77492852]
[1680359687011,10.0,20.974,20.963,6.77492852]
[1680359687893,10.0,20.974,20.961,19.082]
[1680359688090,10.0,20.972,20.961,19.082]
[1680359688406,17.0,20.971,20.961,19.082]
[1680359688796,26.87,20.97,20.961,19.082]
[1680359708822,17.0,20.969,20.961,19.082]
[1680359709010,10.0,20.968,20.961,19.082]
[1680359709218,17.0,20.967,20.961,19.082]
[1680359710413,10.0,20.968,20.961,19.082]
[1680359711023,17.0,20.967,20.961,19.082]
[1680359714613,17.0,20.969,20.961,19.082]
[1680359717433,53.91,20.97,20.961,19.082]
[1680359717613,27.04,20.97,20.962,10.0]
[1680359718516,27.04,20.97,20.961,29.082]
[1680359718924,54.1,20.97,20.961,19.082]
[1680359719645,10.0,20.969,20.961,19.082]
[1680359719948,17.0,20.968,20.961,19.082]
[1680359720114,10.0,20.967,20.961,19.082]
[1680359720315,17.0,20.966,20.961,19.082]
[1680359723437,10.0,20.969,20.961,19.082]
[1680359723932,17.0,20.968,20.961,19.082]
[1680359724534,10.0,20.969,20.961,19.082]
[1680359725243,54.1,20.97,20.961,19.082]
[1680359727030,27.06,20.97,20.961,19.082]
[1680359728432,27.06,20.97,20.962,10.0]
[1680359730552,27.06,20.97,20.962,14.95348372]
[1680359732739,27.06,20.97,20.964,16.78732145]
[1680359732940,27.06,20.97,20.965,19.078]
[1680359733239,20.0,20.975,20.966,10.0]
[1680359733649,20.0,20.976,20.966,10.0]
[1680359735753,20.0,20.976,20.966,10.0]
[1680359737044,20.0,20.976,20.965,19.078]
[1680359737343,10.0,20.975,20.965,26.51598512]
[1680359739458,10.0,20.975,20.965,19.078]
[1680359739745,30.0,20.976,20.965,19.078]
[1680359739953,20.0,20.976,20.966,10.0]
[1680359743653,20.0,20.976,20.965,19.078]
[1680359750761,27.1,20.97,20.965,19.078]
[1680359757056,30.0,20.976,20.965,19.078]
[1680359758463,20.0,20.976,20.965,19.078]
[1680359765675,10.0,20.974,20.965,19.078]
[1680359767065,27.0,20.975,20.965,19.078]
[1680359767374,17.0,20.975,20.965,19.078]
[1680359776982,27.1,20.97,20.965,19.078]
[1680359777279,26.1,20.97,20.965,19.078]
[1680359777478,21.64,20.97,20.965,19.078]
[1680359777679,21.64,20.97,20.962,10.0]
[1680359778495,21.14,20.97,20.962,10.0]
[1680359780983,21.14,20.97,20.961,19.082]
[1680359782492,27.09,20.97,20.961,19.082]
[1680359791686,17.0,20.969,20.961,19.082]
[1680359793395,27.09,20.97,20.961,19.082]
[1680359793905,17.0,20.969,20.961,19.082]
[1680359802321,27.09,20.97,20.961,19.082]
[1680359803099,27.09,20.97,20.962,10.0]
[1680359807120,125.2929,20.975,20.962,10.0]
[1680359807305,17.0,20.974,20.962,10.0]
[1680359810320,17.0,20.974,20.961,19.082]
[1680359810619,27.09,20.97,20.961,19.082]
[1680359813222,17.0,20.969,20.961,19.082]
[1680359813427,10.0,20.968,20.961,19.082]
[1680359813607,10.0,20.968,20.954,27.30582352]
[1680359813608,37.0,20.967,20.957,19.086]
[1680359814227,10.0,20.966,20.957,19.086]
[1680359814523,10.0,20.964,20.957,19.086]
[1680359814913,17.0,20.963,20.957,19.086]
[1680359816320,17.0,20.963,20.952,10.0]
[1680359816526,17.0,20.963,20.953,19.09]
[1680359817024,26.87,20.96,20.953,19.09]
[1680359828316,26.87,20.96,20.949,29.093]
[1680359828523,53.81,20.96,20.949,19.093]
[1680359828822,17.0,20.959,20.949,19.093]
[1680359829832,20.0,20.958,20.949,19.093]
[1680359830035,17.0,20.957,20.949,19.093]
[1680359830230,10.0,20.956,20.949,19.093]
[1680359830431,37.0,20.955,20.949,19.093]
[1680359830632,20.0,20.955,20.949,19.093]
[1680359831652,17.0,20.954,20.944,138.3395]
[1680359831939,17.0,20.954,20.944,19.097]
[1680359837021,26.87,20.95,20.944,19.097]
[1680359839337,110.9864,20.966,20.945,27.0]
[1680359839541,27.09,20.96,20.949,19.093]
[1680359840241,27.09,20.96,20.95,10.0]
[1680359841241,27.09,20.96,20.949,19.093]
[1680359841542,10.0,20.959,20.949,19.093]
[1680359841741,17.0,20.958,20.949,19.093]
[1680359843757,17.0,20.959,20.949,19.093]
[1680359847049,10.0,20.958,20.949,19.093]
[1680359847234,17.0,20.957,20.949,19.093]
[1680359853648,20.0,20.956,20.949,19.093]
[1680359853947,17.0,20.955,20.949,19.093]
[1680359854548,10.0,20.956,20.949,19.093]
[1680359854743,37.0,20.955,20.949,19.093]
[1680359855632,10.0,20.954,20.944,19.098]
[1680359855832,27.09,20.95,20.944,19.098]
[1680359859956,20.0,20.955,20.945,7.36641332]
[1680359860264,20.0,20.956,20.948,19.094]
[1680359861847,10.0,20.955,20.948,19.094]
[1680359862645,17.0,20.954,20.948,19.094]
[1680359862842,10.0,20.953,20.948,19.094]
[1680359863449,10.0,20.953,20.944,19.098]
[1680359863653,27.09,20.95,20.944,19.098]
[1680359865444,17.0,20.949,20.944,19.098]
[1680359865649,17.0,20.949,20.94,29.102]
[1680359868344,17.0,20.949,20.94,19.102]
[1680359868647,20.0,20.948,20.936,19.105]
[1680359868860,10.0,20.946,20.936,19.105]
[1680359869159,37.0,20.945,20.936,19.105]
[1680359875963,20.0,20.945,20.936,19.105]
[1680359876156,17.0,20.944,20.936,19.105]
[1680359876469,17.0,20.946,20.936,19.105]
[1680359876657,20.0,20.945,20.936,19.105]
[1680359876857,17.0,20.944,20.936,19.105]
[1680359878572,20.0,20.945,20.936,19.105]
[1680359878874,20.0,20.946,20.936,19.105]
[1680359879170,20.0,20.948,20.936,19.105]
[1680359879370,17.0,20.947,20.936,19.105]
[1680359879677,20.0,20.946,20.936,19.105]
[1680359880359,17.0,20.945,20.936,19.105]
[1680359881693,20.0,20.946,20.936,19.105]
[1680359881872,17.0,20.945,20.936,19.105]
[1680359882072,17.0,20.947,20.936,19.105]
[1680359882272,20.0,20.946,20.936,19.105]
[1680359882473,17.0,20.945,20.936,19.105]
[1680359883468,17.0,20.945,20.933,104.9714]
[1680359883673,10.0,20.944,20.933,104.9714]
[1680359883876,17.0,20.943,20.934,19.107]
[1680359884693,27.09,20.94,20.934,19.107]
[1680359887275,17.0,20.939,20.934,19.107]
[1680359887685,17.0,20.939,20.931,20.4499093]
[1680359888279,17.0,20.939,20.926,19.114]
[1680359888676,10.0,20.938,20.926,19.114]
[1680359888873,17.0,20.937,20.926,19.114]
[1680359890386,17.0,20.937,20.927,10.0]
[1680359890582,17.0,20.937,20.926,19.114]
[1680359890786,20.0,20.936,20.926,19.114]
[1680359890988,17.0,20.935,20.926,19.114]
[1680359891898,17.0,20.935,20.926,17.514]
[1680359894003,17.0,20.935,20.923,10.0]
[1680359894190,26.87,20.93,20.923,10.0]
[1680359894386,26.87,20.93,20.92,19.119]
[1680359898708,17.0,20.929,20.917,10.0]
[1680359898888,17.0,20.929,20.916,19.107]
[1680359899604,17.0,20.929,20.917,10.0]
[1680359901108,10.0,20.928,20.912,161.80206124]
[1680359901294,10.0,20.926,20.913,10.0]
[1680359901697,10.0,20.926,20.915,19.124]
[1680359902200,20.0,20.925,20.915,19.124]
[1680359902404,10.0,20.924,20.915,19.124]
[1680359902709,17.0,20.923,20.915,19.124]
[1680359903504,10.0,20.924,20.915,19.124]
[1680359903697,17.0,20.923,20.915,19.124]
[1680359904304,17.0,20.923,20.911,108.0863]
[1680359904513,27.09,20.92,20.911,108.0863]
[1680359904693,17.0,20.919,20.911,108.0863]
[1680359906503,27.09,20.92,20.911,108.0863]
[1680359906715,27.09,20.92,20.912,10.0]
[1680359907402,27.09,20.92,20.911,10.0]
[1680359907614,54.07,20.93,20.911,10.0]
[1680359907816,54.07,20.93,20.914,19.125]
[1680359908304,20.0,20.929,20.915,10.0]
[1680359908499,20.0,20.929,20.918,19.122]
[1680359909415,17.0,20.928,20.918,19.122]
[1680359909596,20.0,20.927,20.918,19.122]
[1680359910202,20.0,20.929,20.918,19.122]
[1680359910405,20.0,20.929,20.919,10.0]
[1680359915916,20.0,20.929,20.918,19.122]
[1680359916109,20.0,20.929,20.915,10.0]
[1680359916314,10.0,20.927,20.915,10.0]
[1680359916624,20.0,20.926,20.915,10.0]
[1680359917235,20.0,20.927,20.915,10.0]
[1680359917397,17.0,20.926,20.915,10.0]
[1680359917602,20.0,20.925,20.915,10.0]
[1680359919208,20.0,20.928,20.915,10.0]
[1680359920306,27.0,20.927,20.915,10.0]
[1680359920499,20.0,20.926,20.915,10.0]
[1680359921324,17.0,20.925,20.915,10.0]
[1680359922025,17.0,20.925,20.915,9.0]
[1680359924925,20.0,20.926,20.915,9.0]
[1680359925116,20.0,20.928,20.915,9.0]
[1680359925516,20.0,20.928,20.917,19.122]
[1680359925707,20.0,20.929,20.918,10.0]
[1680359926124,10.0,20.928,20.918,10.0]
[1680359926331,20.0,20.927,20.918,10.0]
[1680359926919,17.0,20.926,20.918,10.0]
[1680359927118,20.0,20.925,20.918,10.0]
[1680359930224,20.0,20.925,20.917,19.122]
[1680359932835,20.0,20.928,20.917,19.122]
[1680359933038,17.0,20.927,20.917,19.122]
[1680359933219,20.0,20.926,20.917,19.122]
[1680359933420,17.0,20.925,20.917,19.122]
[1680359935038,17.0,20.925,20.915,9.0]
[1680359940536,17.0,20.925,20.913,17.12065298]
[1680359946726,20.0,20.926,20.915,19.124]
[1680359946933,20.0,20.926,20.916,10.0]
[1680359947126,20.0,20.925,20.916,10.0]
[1680359947440,20.0,20.928,20.916,10.0]
[1680359948236,17.0,20.927,20.916,10.0]
[1680359948729,20.0,20.926,20.916,10.0]
[1680359948928,17.0,20.925,20.916,10.0]
[1680359949945,20.0,20.926,20.916,10.0]
[1680359950148,26.98,20.93,20.918,19.122]
[1680359950444,26.98,20.93,20.918,26.24265298]
[1680359950649,78.16336957,20.94,20.918,26.24265298]
[1680359950826,78.16336957,20.94,20.919,10.0]
[1680359951025,78.16336957,20.94,20.922,19.118]
[1680359951243,78.16336957,20.94,20.923,10.0]
[1680359952565,78.16336957,20.94,20.922,19.118]
[1680359952751,43.87,20.93,20.92,10.0]
[1680359952959,51.18336957,20.94,20.921,19.118]
[1680359952960,78.27336957,20.94,20.921,19.118]
[1680359953849,17.0,20.93,20.921,19.118]
[1680359956448,78.27336957,20.94,20.921,19.118]
[1680359956650,17.0,20.93,20.921,19.118]
[1680359957031,43.88,20.93,20.921,19.118]
[1680359959533,78.27336957,20.94,20.921,19.118]
[1680359959733,78.27336957,20.94,20.922,10.0]
[1680359960133,68.27336957,20.94,20.927,19.113]
[1680359960351,41.18336957,20.94,20.927,19.113]
[1680359960652,20.0,20.939,20.927,19.113]
[1680359960857,20.0,20.939,20.928,10.0]
[1680359962244,17.0,20.938,20.928,10.0]
[1680359962445,20.0,20.937,20.928,10.0]
[1680359964150,14.20336957,20.94,20.928,10.0]
[1680359964351,54.07,20.95,20.932,19.109]
[1680359964748,54.07,20.95,20.933,10.0]
[1680359965058,133.39001188,20.943,20.933,10.0]
[1680359966461,17.0,20.942,20.933,10.0]
[1680359969363,17.0,20.942,20.932,19.109]
[1680359971471,19.113,20.94,20.932,19.109]
[1680359974647,19.113,20.94,20.933,10.0]
[1680359981974,19.113,20.94,20.933,10.0]
[1680359983472,112.348,20.944,20.933,10.0]
[1680359986172,112.348,20.944,20.932,35.76232364]
[1680359986471,10.0,20.942,20.932,19.109]
[1680359986763,10.0,20.942,20.928,29.112]
[1680359987076,27.09,20.94,20.928,29.112]
[1680359987280,10.0,20.939,20.928,29.112]
[1680359987953,10.0,20.939,20.928,19.112]
[1680359988171,17.0,20.938,20.924,29.116]
[1680359988367,17.0,20.938,20.925,20.0]
[1680359988556,10.0,20.937,20.925,20.0]
[1680359988752,17.0,20.936,20.925,20.0]
[1680359991258,20.0,20.935,20.924,19.116]
[1680359991458,10.0,20.933,20.924,19.116]
[1680359992177,10.0,20.934,20.924,19.116]
[1680359992373,20.0,20.935,20.924,19.116]
[1680359992558,17.0,20.934,20.924,19.116]
[1680359997070,27.09,20.93,20.924,19.116]
[1680360003872,27.09,20.93,20.921,10.0]
[1680360004178,17.0,20.929,20.92,19.12]
[1680360010179,27.09,20.93,20.92,19.12]
[1680360010588,27.09,20.93,20.921,10.0]
[1680360013281,27.09,20.93,20.921,9.0]
[1680360014695,27.09,20.93,20.92,19.12]
[1680360014994,17.0,20.929,20.92,19.12]
[1680360016398,27.09,20.93,20.92,19.12]
[1680360016585,27.09,20.93,20.921,10.0]
[1680360021087,20.0,20.935,20.924,15.88509502]
[1680360021382,20.0,20.935,20.927,19.113]
[1680360021583,20.0,20.935,20.928,10.0]
[1680360022298,20.0,20.935,20.927,19.113]
[1680360024003,20.0,20.935,20.928,10.0]
[1680360024592,64.18,20.94,20.928,10.0]
[1680360024593,27.09,20.94,20.928,10.0]
[1680360024798,27.09,20.94,20.931,19.109]
[1680360025188,27.09,20.94,20.932,10.0]
[1680360033697,112.348,20.944,20.932,10.0]
[1680360033898,112.348,20.944,20.936,10.0]
[1680360034605,122.35285298,20.949,20.936,10.0]
[1680360034906,20.0,20.947,20.938,19.103]
[1680360036907,20.0,20.947,20.939,10.0]
[1680360037107,26.98,20.95,20.939,10.0]
[1680360037818,26.98,20.95,20.942,19.1]
[1680360038005,26.98,20.95,20.943,10.0]
[1680360044615,117.6212,20.954,20.943,10.0]
[1680360044915,117.6212,20.954,20.947,10.0]
[1680360045811,112.6922,20.955,20.947,10.0]
[1680360046009,54.03,20.96,20.947,10.0]
[1680360046010,27.09,20.96,20.947,10.0]
[1680360046403,27.09,20.96,20.95,19.092]
[1680360046805,27.09,20.96,20.951,10.0]
[1680360050925,19.1,20.959,20.951,10.0]
[1680360053027,18.1,20.959,20.951,10.0]
[1680360055923,18.1,20.959,20.95,19.092]
[1680360057821,18.1,20.959,20.95,18.592]
[1680360063736,119.6226,20.963,20.951,10.0]
[1680360064035,119.6226,20.963,20.954,19.088]
[1680360066736,133.81864561,20.963,20.954,19.088]
[1680360067136,10.0,20.962,20.954,19.088]
[1680360067533,10.0,20.962,20.949,19.093]
[1680360067729,17.0,20.961,20.949,19.093]
[1680360067934,17.0,20.961,20.95,10.0]
[1680360068332,133.81864561,20.963,20.952,19.09]
[1680360068639,133.81864561,20.963,20.953,10.0]
[1680360071337,17.0,20.962,20.953,10.0]
[1680360072660,133.81864561,20.963,20.953,10.0]
[1680360073533,133.81864561,20.963,20.952,19.09]
[1680360074651,17.0,20.962,20.952,19.09]
[1680360075037,10.0,20.961,20.952,19.09]
[1680360076954,27.09,20.96,20.952,19.09]
[1680360081348,27.09,20.96,20.945,38.193]
[1680360081651,54.12065298,20.959,20.944,19.098]
[1680360081850,53.96,20.95,20.94,19.102]
[1680360082254,17.0,20.949,20.94,19.102]
[1680360083179,10.0,20.948,20.92,78.7540669]
[1680360083345,10.0,20.948,20.935,19.106]
[1680360083346,27.09,20.94,20.935,19.106]
[1680360085862,27.09,20.94,20.936,10.0]
[1680360086054,118.3237,20.947,20.936,10.0]
[1680360086365,37.0,20.946,20.936,10.0]
[1680360086542,20.0,20.946,20.936,10.0]
[1680360087151,20.0,20.946,20.935,29.106]
[1680360087152,17.0,20.945,20.935,19.106]
[1680360087363,27.09,20.94,20.935,19.106]
[1680360087868,27.09,20.94,20.936,10.0]
[1680360088170,20.0,20.946,20.936,10.0]
[1680360091367,31.12057951,20.949,20.939,19.103]
[1680360091368,13.99992653,20.949,20.939,19.103]
[1680360091549,27.09,20.95,20.939,19.103]
[1680360092071,41.60540401,20.95,20.939,19.103]
[1680360094070,10.0,20.948,20.939,19.103]
[1680360094563,17.0,20.949,20.939,19.103]
[1680360095571,41.60540401,20.95,20.939,19.103]
[1680360095872,17.0,20.949,20.939,19.103]
[1680360096463,41.60540401,20.95,20.939,19.103]
[1680360096672,10.0,20.949,20.939,19.103]
[1680360096970,41.60540401,20.95,20.939,19.103]
[1680360097173,68.58540401,20.95,20.94,10.0]
[1680360097357,17.0,20.949,20.94,10.0]
[1680360097556,68.58540401,20.95,20.94,10.0]
[1680360097758,41.60540401,20.95,20.94,10.0]
[1680360102262,41.60540401,20.95,20.939,19.103]
[1680360102474,17.0,20.949,20.939,19.103]
[1680360102689,17.0,20.949,20.934,19.107]
[1680360102969,26.87,20.94,20.934,19.107]
[1680360104254,53.96,20.94,20.928,5.66004471]
[1680360104458,53.96,20.94,20.92,396.3]
[1680360104459,37.0,20.939,20.92,396.3]
[1680360104662,54.07,20.93,20.91,6.58482719]
[1680360104970,17.0,20.929,20.912,30.0]
[1680360105155,17.0,20.929,20.899,35.70848626]
[1680360105156,26.87,20.92,20.899,35.70848626]
[1680360105360,17.0,20.919,20.899,35.70848626]
[1680360105556,17.0,20.919,20.901,9.0]
[1680360106064,138.2289,20.918,20.901,9.0]
[1680360106271,20.0,20.918,20.901,9.0]
[1680360106570,17.0,20.917,20.901,9.0]
[1680360106771,20.0,20.916,20.901,9.0]
[1680360107481,118.2289,20.916,20.901,9.0]
[1680360107673,37.0,20.915,20.901,9.0]
[1680360110163,20.0,20.915,20.903,10.0]
[1680360110875,17.0,20.914,20.903,10.0]
[1680360112168,20.0,20.915,20.903,10.0]
[1680360113081,20.0,20.915,20.903,9.0]
[1680360115275,17.0,20.914,20.903,9.0]
[1680360115674,40.85,20.92,20.903,9.0]
[1680360115873,40.85,20.92,20.905,6.30300684]
[1680360116066,40.85,20.92,20.907,10.0]
[1680360116467,40.85,20.92,20.907,53.41583515]
[1680360117162,108.5048,20.925,20.908,7.1968485]
[1680360117576,108.5048,20.925,20.909,10.0]
[1680360117983,10.0,20.924,20.909,10.0]
[1680360119983,10.0,20.922,20.909,10.0]
[1680360122488,17.0,20.923,20.909,10.0]
[1680360123686,108.5048,20.925,20.909,10.0]
[1680360123986,108.5048,20.925,20.91,4.21503889]
[1680360124370,108.5048,20.925,20.91,85.73559522]
[1680360124973,108.5048,20.925,20.911,10.0]
[1680360128880,108.5048,20.925,20.911,15.49770296]
[1680360130182,108.5048,20.925,20.912,19.127]
[1680360130383,10.0,20.924,20.913,10.0]
[1680360132294,19.122255,20.919,20.913,10.0]
[1680360132597,19.122255,20.919,20.908,19.131]
[1680360133285,17.0,20.918,20.908,19.131]
[1680360133687,10.0,20.917,20.908,19.131]
[1680360133882,10.0,20.917,20.906,10.0]
[1680360133883,17.0,20.916,20.902,10.0]
[1680360134090,17.0,20.916,20.899,51.61010497]
[1680360134091,20.0,20.915,20.9,19.138]
[1680360134285,17.0,20.914,20.9,19.138]
[1680360134688,81.3,20.91,20.895,51.35010497]
[1680360135001,10.0,20.908,20.895,51.35010497]
[1680360135197,20.0,20.907,20.895,51.35010497]
[1680360135387,40.85,20.9,20.895,51.35010497]
[1680360135584,81.39,20.9,20.889,38.24463]
[1680360135885,10.0,20.898,20.889,38.24463]
[1680360136290,81.39,20.9,20.889,38.24463]
[1680360136291,17.0,20.897,20.889,38.24463]
[1680360136487,40.54,20.9,20.889,38.24463]
[1680360136694,10.0,20.908,20.889,25.74463]
[1680360136907,17.0,20.907,20.89,10.0]
[1680360137082,40.54,20.91,20.89,10.0]
[1680360137287,81.39,20.91,20.89,17.12065298]
[1680360137583,81.7,20.91,20.89,16.4993965]
[1680360137785,81.7,20.91,20.89,17.12065298]
[1680360137786,40.85,20.91,20.89,17.12065298]
[1680360137982,40.85,20.91,20.89,21.14978951]
[1680360138186,40.85,20.91,20.891,51.73619697]
[1680360138491,10.0,20.918,20.892,20.0]
[1680360138806,40.85,20.92,20.893,16.90283076]
[1680360138996,81.39,20.93,20.893,24.02348374]
[1680360139184,81.39,20.93,20.901,6.72362381]
[1680360139387,40.85,20.93,20.902,37.0]
[1680360139581,40.85,20.93,20.903,6.69204371]
[1680360139800,10.0,20.929,20.905,15.96206419]
[1680360139986,81.3,20.94,20.906,17.0]
[1680360140181,14.90728609,20.919,20.91,40.65]
[1680360140488,14.90728609,20.919,20.911,23.52711344]
[1680360140489,0.00728609,20.919,20.911,23.52711344]
[1680360140795,81.3,20.94,20.911,23.52711344]
[1680360140796,10.0,20.939,20.914,10.0]
[1680360140981,40.85,20.94,20.915,42.95151477]
[1680360141191,117.0032,20.943,20.92,40.76]
[1680360141380,117.0032,20.943,20.922,7.54143745]
[1680360141697,10.0,20.949,20.925,10.0]
[1680360141995,127.0032,20.949,20.926,23.20508333]
[1680360142198,127.0032,20.949,20.927,10.0]
[1680360142501,117.0032,20.949,20.928,23.92144831]
[1680360142700,117.0032,20.949,20.93,16.13592958]
[1680360142895,117.0032,20.949,20.931,37.0]
[1680360143301,117.0032,20.949,20.932,6.80240605]
[1680360143498,14.43222739,20.959,20.933,17.0]
[1680360143698,114.3513,20.963,20.936,10.0]
[1680360144014,114.3513,20.963,20.938,4.1063208]
[1680360144299,114.3513,20.963,20.939,17.0]
[1680360144501,53.96,20.96,20.94,26.12467348]
[1680360144688,10.0,20.959,20.94,6.12467348]
[1680360144898,10.0,20.959,20.936,10.0]
[1680360145089,10.0,20.959,20.937,17.0]
[1680360145290,17.12065298,20.959,20.936,10.0]
[1680360145989,20.0,20.958,20.937,17.0]
[1680360146594,10.0,20.957,20.938,10.0]
[1680360146796,10.0,20.957,20.938,17.38416326]
[1680360146797,20.0,20.956,20.938,17.38416326]
[1680360147300,17.0,20.955,20.938,10.0]
[1680360147504,20.0,20.956,20.938,10.0]
[1680360147800,10.0,20.955,20.938,10.0]
[1680360148296,10.0,20.955,20.939,23.41993904]
[1680360148502,10.0,20.955,20.94,10.0]
[1680360148693,10.0,20.955,20.941,17.0]
[1680360149492,10.0,20.955,20.94,4.81877542]
[1680360149705,10.0,20.955,20.936,10.0]
[1680360149706,10.0,20.953,20.936,10.0]
[1680360150793,10.0,20.953,20.937,17.0]
[1680360150997,10.0,20.953,20.938,10.0]
[1680360152306,17.0,20.952,20.938,10.0]
[1680360152894,10.0,20.953,20.938,10.0]
[1680360153099,20.0,20.956,20.939,23.87941625]
[1680360153513,20.0,20.958,20.939,23.87941625]
[1680360153713,10.0,20.957,20.94,10.0]
[1680360153915,10.0,20.957,20.942,10.0]
[1680360154120,20.0,20.956,20.942,10.0]
[1680360154622,10.0,20.954,20.942,10.0]
[1680360155499,10.0,20.954,20.939,7.04906428]
[1680360155715,53.96,20.95,20.94,40.54830029]
[1680360155909,17.0,20.949,20.932,10.0]
[1680360156120,10.0,20.947,20.932,10.0]
[1680360156305,37.0,20.946,20.932,10.0]
[1680360156506,10.0,20.945,20.932,10.0]
[1680360157725,20.0,20.946,20.932,10.0]